fUSD/lending_fUSD_20260703
["ID","MTS","AMOUNT","RATE_DAILY","PERIOD"]
[426946245,1783044641000,-186.0,0.0002704,5]
[426946246,1783044641000,-154.56973677,0.00027161,3]
[426946244,1783044641000,-2935.99475202,0.00027033,2]
[426946248,1783044641000,-3339.24292506,0.00027244,7]
[426946195,1783044641000,-188.70387969,0.00026991,2]
[426946250,1783044641000,-155.13634018,0.00027262,2]
[426946249,1783044641000,-322.29318942,0.00027262,2]
[426946221,1783044641000,-544.70686823,0.00026996,2]
[426946215,1783044641000,-292.52464963,0.00026991,2]
[426946247,1783044641000,-153.0,0.00027172,3]
[426946218,1783044641000,-286.24690801,0.00026996,2]
[426946216,1783044641000,-320.16064734,0.00026991,2]
[426946185,1783044641000,-649.48962618,0.00026991,2]
[426946196,1783044641000,-306.31129797,0.00026991,2]
[426946194,1783044641000,-277.67320058,0.00026991,2]
[426946192,1783044641000,-278.12781103,0.00026991,2]
[426946189,1783044641000,-358.40566532,0.00026991,2]
[426946190,1783044641000,-266.14496109,0.00026991,2]
[426946198,1783044641000,-437.18450565,0.00026991,2]
[426946208,1783044641000,-300.24639135,0.00026991,2]
[426946197,1783044641000,-390.98808729,0.00026991,2]
[426946200,1783044641000,-281.55654446,0.00026991,2]
[426946201,1783044641000,-291.89618906,0.00026991,2]
[426946202,1783044641000,-309.29320454,0.00026991,2]
[426946199,1783044641000,-203.55020607,0.00026991,2]
[426946191,1783044641000,-187.36942356,0.00026991,2]
[426946204,1783044641000,-306.80577001,0.00026991,2]
[426946205,1783044641000,-336.85400277,0.00026991,2]
[426946217,1783044641000,-170.05658699,0.00026996,2]
[426946213,1783044641000,-281.26055968,0.00026991,2]
[426946210,1783044641000,-347.03867981,0.00026991,2]
[426946220,1783044641000,-283.5277781,0.00026996,2]
[426946214,1783044641000,-246.68897737,0.00026991,2]
[426946219,1783044641000,-224.2899136,0.00026996,2]
[426946211,1783044641000,-204.27486247,0.00026991,2]
[426946209,1783044641000,-299.02440567,0.00026991,2]
[426946207,1783044641000,-405.46814498,0.00026991,2]
[426946203,1783044641000,-219.27448257,0.00026991,2]
[426946206,1783044641000,-189.60919054,0.00026991,2]
[426946212,1783044641000,-291.28050105,0.00026991,2]
[426946288,1783044642000,-240.05099,0.00027397,2]
[426946292,1783044642000,-240.05099,0.00027397,2]
[426946285,1783044642000,-240.05099,0.00027397,2]
[426946291,1783044642000,-240.05099,0.00027397,2]
[426946287,1783044642000,-240.05099,0.00027397,2]
[426946286,1783044642000,-240.05099,0.00027397,2]
[426946284,1783044642000,-240.05099,0.00027397,2]
[426946293,1783044642000,-240.050991,0.00027397,2]
[426946282,1783044642000,-240.05099,0.00027397,2]
[426946290,1783044642000,-240.05099,0.00027397,2]
[426946289,1783044642000,-240.05099,0.00027397,2]
[426946283,1783044642000,-240.05099,0.00027397,2]
[426946298,1783044642000,-266.745055,0.00027397,2]
[426946305,1783044642000,-266.745055,0.00027397,2]
[426946300,1783044642000,-266.745055,0.00027397,2]
[426946296,1783044642000,-266.745055,0.00027397,2]
[426946299,1783044642000,-266.745055,0.00027397,2]
[426946303,1783044642000,-266.745055,0.00027397,2]
[426946301,1783044642000,-266.745055,0.00027397,2]
[426946294,1783044642000,-266.745055,0.00027397,2]
[426946297,1783044642000,-266.745055,0.00027397,2]
[426946302,1783044642000,-266.745055,0.00027397,2]
[426946307,1783044642000,-266.745055,0.00027397,2]
[426946304,1783044642000,-266.745055,0.00027397,2]
[426946306,1783044642000,-266.745055,0.00027397,2]
[426946278,1783044642000,-240.05099,0.00027397,2]
[426946295,1783044642000,-266.745055,0.00027397,2]
[426946279,1783044642000,-240.05099,0.00027397,2]
[426946267,1783044642000,-1000.0,0.00027397,2]
[426946275,1783044642000,-240.05099,0.00027397,2]
[426946254,1783044642000,-879.431,0.00027267,90]
[426946256,1783044642000,-221.0955995,0.000273,30]
[426946257,1783044642000,-200.0,0.00027321,2]
[426946258,1783044642000,-3339.24292506,0.00027352,7]
[426946255,1783044642000,-1081.96,0.00027282,2]
[426946251,1783044642000,-500.0,0.00027267,90]
[426946253,1783044642000,-500.0,0.00027267,90]
[426946252,1783044642000,-500.0,0.00027267,90]
[426946259,1783044642000,-300.0,0.00027396,10]
[426946261,1783044642000,-1000.0,0.00027397,2]
[426946262,1783044642000,-1000.0,0.00027397,2]
[426946260,1783044642000,-509.9,0.00027397,2]
[426946280,1783044642000,-240.05099,0.00027397,2]
[426946264,1783044642000,-1000.0,0.00027397,2]
[426946268,1783044642000,-1000.0,0.00027397,2]
[426946266,1783044642000,-1000.0,0.00027397,2]
[426946265,1783044642000,-1000.0,0.00027397,2]
[426946269,1783044642000,-1000.0,0.00027397,2]
[426946271,1783044642000,-1500.0,0.00027397,2]
[426946270,1783044642000,-1000.0,0.00027397,2]
[426946273,1783044642000,-3069.0,0.00027397,10]
[426946274,1783044642000,-240.05099,0.00027397,2]
[426946272,1783044642000,-10000.0,0.00027397,10]
[426946281,1783044642000,-240.05099,0.00027397,2]
[426946277,1783044642000,-240.05099,0.00027397,2]
[426946276,1783044642000,-240.05099,0.00027397,2]
[426946263,1783044642000,-1000.0,0.00027397,2]
[426946310,1783044642000,-266.745055,0.00027397,2]
[426946315,1783044642000,-259.646784,0.00027397,2]
[426946309,1783044642000,-266.745055,0.00027397,2]
[426946343,1783044642000,-199.462662,0.00027397,2]
[426946354,1783044642000,-199.462662,0.00027397,2]
[426946345,1783044642000,-199.462662,0.00027397,2]
[426946346,1783044642000,-199.462662,0.00027397,2]
[426946344,1783044642000,-199.462662,0.00027397,2]
[426946342,1783044642000,-199.462662,0.00027397,2]
[426946347,1783044642000,-199.462662,0.00027397,2]
[426946351,1783044642000,-199.462662,0.00027397,2]
[426946350,1783044642000,-199.462662,0.00027397,2]
[426946349,1783044642000,-199.462662,0.00027397,2]
[426946348,1783044642000,-199.462662,0.00027397,2]
[426946352,1783044642000,-199.462662,0.00027397,2]
[426946340,1783044642000,-199.462662,0.00027397,2]
[426946355,1783044642000,-199.462662,0.00027397,2]
[426946361,1783044642000,-398.571941,0.00027397,2]
[426946358,1783044642000,-398.571941,0.00027397,2]
[426946360,1783044642000,-398.571941,0.00027397,2]
[426946367,1783044642000,-398.571941,0.00027397,2]
[426946368,1783044642000,-398.571941,0.00027397,2]
[426946364,1783044642000,-398.571941,0.00027397,2]
[426946362,1783044642000,-398.571941,0.00027397,2]
[426946366,1783044642000,-398.571941,0.00027397,2]
[426946365,1783044642000,-398.571941,0.00027397,2]
[426946369,1783044642000,-398.571941,0.00027397,2]
[426946370,1783044642000,-398.571941,0.00027397,2]
[426946312,1783044642000,-266.745055,0.00027397,2]
[426946359,1783044642000,-398.571941,0.00027397,2]
[426946336,1783044642000,-199.462662,0.00027397,2]
[426946371,1783044642000,-398.571941,0.00027397,2]
[426946339,1783044642000,-199.462662,0.00027397,2]
[426946332,1783044642000,-259.646784,0.00027397,2]
[426946317,1783044642000,-259.646784,0.00027397,2]
[426946316,1783044642000,-259.646784,0.00027397,2]
[426946311,1783044642000,-266.745055,0.00027397,2]
[426946313,1783044642000,-266.745062,0.00027397,2]
[426946314,1783044642000,-259.646784,0.00027397,2]
[426946319,1783044642000,-259.646784,0.00027397,2]
[426946329,1783044642000,-259.646784,0.00027397,2]
[426946318,1783044642000,-259.646784,0.00027397,2]
[426946320,1783044642000,-259.646784,0.00027397,2]
[426946321,1783044642000,-259.646784,0.00027397,2]
[426946326,1783044642000,-259.646784,0.00027397,2]
[426946322,1783044642000,-259.646784,0.00027397,2]
[426946308,1783044642000,-266.745055,0.00027397,2]
[426946324,1783044642000,-259.646784,0.00027397,2]
[426946325,1783044642000,-259.646784,0.00027397,2]
[426946334,1783044642000,-151.915036,0.00027397,2]
[426946338,1783044642000,-199.462662,0.00027397,2]
[426946337,1783044642000,-199.462662,0.00027397,2]
[426946333,1783044642000,-259.646779,0.00027397,2]
[426946335,1783044642000,-199.462662,0.00027397,2]
[426946331,1783044642000,-259.646784,0.00027397,2]
[426946330,1783044642000,-259.646784,0.00027397,2]
[426946323,1783044642000,-259.646784,0.00027397,2]
[426946328,1783044642000,-259.646784,0.00027397,2]
[426946327,1783044642000,-259.646784,0.00027397,2]
[426946341,1783044642000,-199.462662,0.00027397,2]
[426946417,1783044643000,-317.0,0.000275,2]
[426946407,1783044643000,-173.45,0.000274,2]
[426946415,1783044643000,-516.74902409,0.000275,7]
[426946416,1783044643000,-150.0,0.000275,2]
[426946401,1783044643000,-150.99,0.00027397,2]
[426946406,1783044643000,-151.6950005,0.000274,7]
[426946405,1783044643000,-253.84,0.000274,7]
[426946398,1783044643000,-9999.99,0.00027397,2]
[426946397,1783044643000,-8427.37,0.00027397,2]
[426946414,1783044643000,-384.0,0.00027486,2]
[426946409,1783044643000,-173.45,0.000274,2]
[426946418,1783044643000,-151.24630945,0.00027525,30]
[426946408,1783044643000,-173.45,0.000274,2]
[426946411,1783044643000,-2935.99475202,0.00027408,2]
[426946413,1783044643000,-237.32299978,0.00027449,2]
[426946412,1783044643000,-280.83617799,0.00027416,14]
[426946419,1783044643000,-322.29318942,0.00027536,2]
[426946420,1783044643000,-1740.30607,0.00027541,2]
[426946422,1783044643000,-230.95302907,0.00027544,2]
[426946429,1783044643000,-291.00074352,0.00027547,2]
[426946421,1783044643000,-205.43008531,0.00027544,2]
[426946423,1783044643000,-492.63920167,0.00027547,2]
[426946425,1783044643000,-198.37483562,0.00027547,2]
[426946396,1783044643000,-1736.42,0.00027397,2]
[426946410,1783044643000,-173.45,0.000274,2]
[426946399,1783044643000,-5741.14,0.00027397,2]
[426946391,1783044643000,-453.35666946,0.00027397,2]
[426946402,1783044643000,-999.99,0.00027397,2]
[426946380,1783044643000,-151.000015,0.00027397,2]
[426946381,1783044643000,-300.0,0.00027397,2]
[426946377,1783044643000,-398.571941,0.00027397,2]
[426946376,1783044643000,-398.571941,0.00027397,2]
[426946374,1783044643000,-398.571941,0.00027397,2]
[426946372,1783044643000,-398.571941,0.00027397,2]
[426946373,1783044643000,-398.571941,0.00027397,2]
[426946378,1783044643000,-398.571941,0.00027397,2]
[426946375,1783044643000,-398.571941,0.00027397,2]
[426946379,1783044643000,-151.0,0.00027397,2]
[426946384,1783044643000,-4629.05,0.00027397,10]
[426946382,1783044643000,-6665.83,0.00027397,10]
[426946393,1783044643000,-9999.99,0.00027397,2]
[426946383,1783044643000,-5554.86,0.00027397,10]
[426946392,1783044643000,-299.99,0.00027397,12]
[426946386,1783044643000,-3214.62,0.00027397,10]
[426946387,1783044643000,-2678.85,0.00027397,10]
[426946390,1783044643000,-302.23777964,0.00027397,2]
[426946389,1783044643000,-151.11888982,0.00027397,2]
[426946385,1783044643000,-3857.54,0.00027397,10]
[426946388,1783044643000,-2232.37,0.00027397,10]
[426946395,1783044643000,-9415.09,0.00027397,2]
[426946404,1783044643000,-2121.08,0.000274,7]
[426946394,1783044643000,-5369.46,0.00027397,2]
[426946403,1783044643000,-378.2,0.00027397,2]
[426946400,1783044643000,-9999.99,0.00027397,2]
[426946424,1783044643000,-498.09300654,0.00027547,2]
[426946427,1783044643000,-230.323466,0.00027547,2]
[426946428,1783044643000,-198.37920873,0.00027547,2]
[426946469,1783044643000,-655.77675847,0.00027548,2]
[426946463,1783044643000,-556.25562205,0.00027548,2]
[426946461,1783044643000,-532.28992218,0.00027548,2]
[426946458,1783044643000,-794.76032801,0.00027548,2]
[426946460,1783044643000,-415.55426177,0.00027548,2]
[426946462,1783044643000,-374.73884712,0.00027548,2]
[426946465,1783044643000,-476.93277756,0.00027548,2]
[426946468,1783044643000,-586.48213093,0.00027548,2]
[426946467,1783044643000,-459.46694696,0.00027548,2]
[426946464,1783044643000,-555.34640116,0.00027548,2]
[426946466,1783044643000,-377.40775937,0.00027548,2]
[426946470,1783044643000,-407.10041213,0.00027548,2]
[426946479,1783044643000,-460.20865501,0.00027548,2]
[426946481,1783044643000,-437.89033519,0.00027548,2]
[426946474,1783044643000,-463.9398068,0.00027548,2]
[426946471,1783044643000,-563.11308891,0.00027548,2]
[426946476,1783044643000,-438.54896515,0.00027548,2]
[426946478,1783044643000,-411.16834434,0.00027548,2]
[426946475,1783044643000,-381.69927933,0.00027548,2]
[426946473,1783044643000,-583.79237812,0.00027548,2]
[426946480,1783044643000,-505.28100416,0.00027548,2]
[426946472,1783044643000,-432.3549036,0.00027548,2]
[426946483,1783044643000,-462.33653692,0.00027548,2]
[426946482,1783044643000,-533.45844937,0.00027548,2]
[426946426,1783044643000,-201.81985557,0.00027547,2]
[426946459,1783044643000,-537.60849798,0.00027548,2]
[426946455,1783044643000,-376.54627511,0.00027548,2]
[426946477,1783044643000,-168.13190868,0.00027548,2]
[426946448,1783044643000,-558.03850942,0.00027548,2]
[426946430,1783044643000,-208.78698868,0.00027547,2]
[426946453,1783044643000,-497.87406047,0.00027548,2]
[426946431,1783044643000,-239.84481317,0.00027547,2]
[426946434,1783044643000,-250.00228691,0.00027547,2]
[426946438,1783044643000,-178.44976154,0.00027547,2]
[426946436,1783044643000,-182.73311069,0.00027547,2]
[426946432,1783044643000,-489.58041351,0.00027547,2]
[426946437,1783044643000,-200.03256785,0.00027547,2]
[426946435,1783044643000,-478.69165875,0.00027547,2]
[426946439,1783044643000,-162.36843023,0.00027548,2]
[426946442,1783044643000,-218.89427824,0.00027548,2]
[426946441,1783044643000,-156.73683637,0.00027548,2]
[426946444,1783044643000,-547.57003802,0.00027548,2]
[426946433,1783044643000,-213.11652044,0.00027547,2]
[426946456,1783044643000,-174.88246734,0.00027548,2]
[426946449,1783044643000,-245.03891909,0.00027548,2]
[426946443,1783044643000,-319.79131663,0.00027548,2]
[426946447,1783044643000,-476.97618842,0.00027548,2]
[426946450,1783044643000,-307.02062179,0.00027548,2]
[426946451,1783044643000,-307.39311488,0.00027548,2]
[426946452,1783044643000,-448.36884951,0.00027548,2]
[426946454,1783044643000,-865.98616824,0.00027548,2]
[426946446,1783044643000,-228.59372671,0.00027548,2]
[426946445,1783044643000,-203.76115448,0.00027548,2]
[426946440,1783044643000,-166.05559641,0.00027548,2]
[426946457,1783044643000,-247.89079634,0.00027548,2]
[426946520,1783044644000,-500.0,0.0002771,120]
[426946525,1783044644000,-203.65,0.00027711,7]
[426946529,1783044644000,-1740.30608,0.00027741,2]
[426946528,1783044644000,-355.46681934,0.0002774,2]
[426946521,1783044644000,-500.0,0.0002771,120]
[426946512,1783044644000,-572.6052305,0.00027553,2]
[426946519,1783044644000,-2009.0,0.000277,2]
[426946514,1783044644000,-573.45501655,0.00027553,2]
[426946513,1783044644000,-590.59193703,0.00027553,2]
[426946515,1783044644000,-618.01103836,0.00027553,2]
[426946523,1783044644000,-500.0,0.0002771,7]
[426946522,1783044644000,-1000.0,0.0002771,2]
[426946527,1783044644000,-203.9,0.00027711,7]
[426946534,1783044644000,-155.13634023,0.0002781,2]
[426946524,1783044644000,-784.98,0.00027711,7]
[426946531,1783044644000,-467.91028422,0.00027766,2]
[426946541,1783044644000,-265.0,0.0002784,2]
[426946530,1783044644000,-162.78,0.00027757,7]
[426946533,1783044644000,-322.29318942,0.0002781,2]
[426946532,1783044644000,-2935.99475202,0.00027784,2]
[426946538,1783044644000,-500.0,0.0002781,120]
[426946537,1783044644000,-500.0,0.0002781,120]
[426946542,1783044644000,-5000.0,0.00027852,7]
[426946536,1783044644000,-507.56614205,0.0002781,120]
[426946535,1783044644000,-500.0,0.0002781,120]
[426946508,1783044644000,-448.5798272,0.00027553,2]
[426946526,1783044644000,-785.67,0.00027711,7]
[426946511,1783044644000,-272.35343411,0.00027553,2]
[426946485,1783044644000,-450.36958702,0.00027548,2]
[426946518,1783044644000,-1889.42357108,0.00027585,2]
[426946493,1783044644000,-493.37795473,0.00027548,2]
[426946494,1783044644000,-562.52111935,0.00027548,2]
[426946486,1783044644000,-598.04881133,0.00027548,2]
[426946484,1783044644000,-608.20221748,0.00027548,2]
[426946487,1783044644000,-182.60241331,0.00027548,2]
[426946488,1783044644000,-604.47555928,0.00027548,2]
[426946489,1783044644000,-520.55801972,0.00027548,2]
[426946492,1783044644000,-240.1459015,0.00027548,2]
[426946491,1783044644000,-582.56100209,0.00027548,2]
[426946490,1783044644000,-408.54972493,0.00027548,2]
[426946495,1783044644000,-585.04929927,0.00027548,2]
[426946497,1783044644000,-784.98,0.0002755,30]
[426946496,1783044644000,-480.240971,0.00027548,2]
[426946499,1783044644000,-182.78,0.0002755,2]
[426946502,1783044644000,-203.9,0.0002755,30]
[426946500,1783044644000,-162.78,0.0002755,30]
[426946501,1783044644000,-785.67,0.0002755,30]
[426946498,1783044644000,-203.65,0.0002755,30]
[426946503,1783044644000,-182.68,0.0002755,2]
[426946540,1783044644000,-11391.0,0.00027824,2]
[426946504,1783044644000,-379.21838109,0.00027553,2]
[426946505,1783044644000,-436.61076607,0.00027553,2]
[426946506,1783044644000,-572.49381602,0.00027553,2]
[426946516,1783044644000,-2683.48842148,0.00027554,7]
[426946517,1783044644000,-3339.24292506,0.00027563,7]
[426946507,1783044644000,-340.11317397,0.00027553,2]
[426946509,1783044644000,-231.73580641,0.00027553,2]
[426946510,1783044644000,-567.05555621,0.00027553,2]
[426946539,1783044644000,-500.0,0.0002781,60]
[426946584,1783044644000,-182.68,0.0002813,7]
[426946545,1783044644000,-5020.40807309,0.00027852,7]
[426946576,1783044644000,-203.9,0.00028033,30]
[426946577,1783044644000,-2917.0,0.00028047,5]
[426946579,1783044644000,-224.05161212,0.00028074,2]
[426946578,1783044644000,-2931.0,0.00028047,5]
[426946591,1783044644000,-784.98,0.00028194,7]
[426946581,1783044644000,-165.01258031,0.00028104,2]
[426946580,1783044644000,-322.29318942,0.00028084,2]
[426946586,1783044644000,-2935.99475202,0.00028159,2]
[426946582,1783044644000,-162.81,0.0002813,2]
[426946588,1783044644000,-755.8377892,0.00028182,2]
[426946585,1783044644000,-1740.30608,0.00028141,2]
[426946583,1783044644000,-182.78,0.0002813,7]
[426946587,1783044644000,-162.78,0.00028171,30]
[426946590,1783044644000,-151.6950005,0.00028194,7]
[426946589,1783044644000,-1889.42357108,0.0002819,2]
[426946592,1783044644000,-203.65,0.00028194,7]
[426946597,1783044644000,-300.0,0.00028214,10]
[426946593,1783044644000,-785.67,0.00028194,7]
[426946598,1783044644000,-300.0,0.00028214,10]
[426946602,1783044644000,-1000.0,0.00028315,2]
[426946600,1783044644000,-455.08500151,0.00028315,7]
[426946596,1783044644000,-253.84,0.000282,7]
[426946594,1783044644000,-203.9,0.00028194,7]
[426946595,1783044644000,-2121.08,0.000282,7]
[426946603,1783044644000,-1000.0,0.00028315,2]
[426946601,1783044644000,-1000.0,0.00028315,2]
[426946543,1783044644000,-215.21189417,0.00027852,7]
[426946574,1783044644000,-203.65,0.00028033,30]
[426946570,1783044644000,-243.0,0.00028,2]
[426946599,1783044644000,-332.34882812,0.00028252,2]
[426946573,1783044644000,-784.98,0.00028033,30]
[426946572,1783044644000,-159.0,0.00028,2]
[426946548,1783044644000,-785.67,0.00027872,2]
[426946554,1783044644000,-1740.30607,0.00027941,2]
[426946546,1783044644000,-784.98,0.00027872,2]
[426946547,1783044644000,-203.65,0.00027872,2]
[426946549,1783044644000,-203.9,0.00027872,2]
[426946555,1783044644000,-200.0,0.00027955,2]
[426946551,1783044644000,-1468.0,0.00027918,2]
[426946544,1783044644000,-5000.0,0.00027852,7]
[426946550,1783044644000,-384.0,0.00027884,2]
[426946553,1783044644000,-1492.0,0.00027939,5]
[426946567,1783044644000,-199.0,0.00028,2]
[426946566,1783044644000,-240.0,0.00028,2]
[426946552,1783044644000,-367.52136649,0.00027918,2]
[426946562,1783044644000,-22500.0,0.00028,2]
[426946575,1783044644000,-785.67,0.00028033,30]
[426946571,1783044644000,-334.0,0.00028,2]
[426946569,1783044644000,-153.0,0.00028,2]
[426946558,1783044644000,-250.66468145,0.00028,2]
[426946559,1783044644000,-10171.30666664,0.00028,5]
[426946556,1783044644000,-162.78,0.00027964,2]
[426946568,1783044644000,-321.0,0.00028,2]
[426946565,1783044644000,-152.0,0.00028,2]
[426946564,1783044644000,-163.32030284,0.00028,2]
[426946561,1783044644000,-643.0,0.00028,2]
[426946560,1783044644000,-160.0,0.00028,2]
[426946557,1783044644000,-509.9,0.00027972,2]
[426946563,1783044644000,-258.0,0.00028,2]
[426946644,1783044645000,-1000.0,0.00028658,2]
[426946645,1783044645000,-1000.0,0.00028658,2]
[426946641,1783044645000,-1348.47843471,0.00028646,15]
[426946638,1783044645000,-1051.1,0.00028624,30]
[426946631,1783044645000,-509.9,0.00028548,2]
[426946639,1783044645000,-322.29318942,0.00028632,2]
[426946637,1783044645000,-151.6950005,0.000286,7]
[426946636,1783044645000,-84718.77069356,0.000286,7]
[426946634,1783044645000,-300.0,0.00028599,10]
[426946629,1783044645000,-1740.30607,0.00028541,2]
[426946635,1783044645000,-300.0,0.00028599,10]
[426946643,1783044645000,-1000.0,0.00028658,2]
[426946650,1783044645000,-150.0,0.00028701,7]
[426946642,1783044645000,-1000.0,0.00028658,2]
[426946647,1783044645000,-260.03445119,0.00028701,7]
[426946651,1783044645000,-150.0,0.00028701,7]
[426946648,1783044645000,-150.0,0.00028701,7]
[426946652,1783044645000,-150.0,0.00028701,7]
[426946649,1783044645000,-150.0,0.00028701,7]
[426946654,1783044645000,-167.35133042,0.00028701,7]
[426946653,1783044645000,-150.0,0.00028701,7]
[426946656,1783044645000,-150.0,0.00028701,7]
[426946655,1783044645000,-150.0,0.00028701,7]
[426946632,1783044645000,-200.0,0.0002859,2]
[426946658,1783044645000,-155.09852578,0.00028713,120]
[426946646,1783044645000,-150.0,0.00028701,7]
[426946633,1783044645000,-300.0,0.00028599,10]
[426946618,1783044645000,-350.0,0.00028374,2]
[426946630,1783044645000,-1000.0,0.00028543,2]
[426946657,1783044645000,-162.81,0.0002871,7]
[426946605,1783044645000,-1000.0,0.00028315,2]
[426946607,1783044645000,-248.0,0.00028339,5]
[426946615,1783044645000,-9116.1,0.00028364,7]
[426946604,1783044645000,-1000.0,0.00028315,2]
[426946608,1783044645000,-1740.30608,0.00028341,2]
[426946606,1783044645000,-299.08486011,0.00028317,2]
[426946609,1783044645000,-322.29318942,0.00028358,2]
[426946611,1783044645000,-455.08500151,0.00028364,7]
[426946614,1783044645000,-389.35,0.00028364,7]
[426946613,1783044645000,-3026.45,0.00028364,7]
[426946610,1783044645000,-153.27888286,0.0002836,2]
[426946612,1783044645000,-636.91,0.00028364,7]
[426946616,1783044645000,-438.80061568,0.00028366,2]
[426946619,1783044645000,-190.95575996,0.0002838,2]
[426946623,1783044645000,-162.81,0.0002842,30]
[426946620,1783044645000,-282.29848222,0.0002839,2]
[426946617,1783044645000,-322.45799623,0.00028372,2]
[426946626,1783044645000,-384.0,0.00028503,2]
[426946628,1783044645000,-2935.99475202,0.00028535,2]
[426946625,1783044645000,-1051.1,0.000285,30]
[426946627,1783044645000,-151.24630945,0.00028525,30]
[426946622,1783044645000,-568.4283,0.00028416,14]
[426946621,1783044645000,-420.11412656,0.00028416,14]
[426946624,1783044645000,-327.87,0.00028464,120]
[426946640,1783044645000,-414.52324595,0.00028633,2]
[426946659,1783044645000,-170.39,0.00028723,3]
[426946663,1783044645000,-504.08,0.00028767,2]
[426946716,1783044645000,-308.37,0.00029,30]
[426946692,1783044645000,-218.37585953,0.00028977,7]
[426946693,1783044645000,-384.0,0.00028989,2]
[426946690,1783044645000,-445.59556489,0.00028975,2]
[426946695,1783044645000,-381.52093219,0.00028999,10]
[426946697,1783044645000,-500.0,0.00028999,120]
[426946699,1783044645000,-500.0,0.00028999,7]
[426946698,1783044645000,-1000.0,0.00028999,2]
[426946706,1783044645000,-174.33,0.00029,7]
[426946700,1783044645000,-566.63985286,0.00029,2]
[426946696,1783044645000,-300.0,0.00028999,10]
[426946705,1783044645000,-1419.65,0.00029,115]
[426946704,1783044645000,-1751.94,0.00029,115]
[426946702,1783044645000,-3952.56,0.00029,115]
[426946703,1783044645000,-1000.0,0.00029,2]
[426946708,1783044645000,-1018.43,0.00029,2]
[426946707,1783044645000,-174.33,0.00029,15]
[426946709,1783044645000,-150.0,0.00029,7]
[426946714,1783044645000,-953.31,0.00029,115]
[426946718,1783044645000,-150.0,0.00029,7]
[426946710,1783044645000,-1000.0,0.00029,2]
[426946713,1783044645000,-1000.0,0.00029,2]
[426946711,1783044645000,-150.0,0.00029,7]
[426946712,1783044645000,-1000.0,0.00029,2]
[426946715,1783044645000,-794.09,0.00029,115]
[426946660,1783044645000,-2864.46596961,0.00028724,2]
[426946689,1783044645000,-39168.04628182,0.0002897,6]
[426946691,1783044645000,-467.91028422,0.00028976,2]
[426946701,1783044645000,-4382.5,0.00029,115]
[426946687,1783044645000,-300.0,0.00028969,10]
[426946688,1783044645000,-300.0,0.00028969,10]
[426946661,1783044645000,-1051.1,0.00028747,30]
[426946662,1783044645000,-257.0,0.00028767,2]
[426946665,1783044645000,-156.36093957,0.00028776,2]
[426946667,1783044645000,-500.0,0.00028777,120]
[426946664,1783044645000,-1000.0,0.00028772,2]
[426946666,1783044645000,-224.35201974,0.00028777,120]
[426946668,1783044645000,-1000.0,0.00028777,2]
[426946670,1783044645000,-4571.15731054,0.00028778,2]
[426946671,1783044645000,-5703.31284984,0.00028778,2]
[426946681,1783044645000,-253.84,0.000289,7]
[426946673,1783044645000,-1889.42357108,0.00028795,2]
[426946677,1783044645000,-5939.80493985,0.0002886,2]
[426946669,1783044645000,-500.0,0.00028777,7]
[426946675,1783044645000,-458.00156634,0.00028812,2]
[426946678,1783044645000,-1051.1,0.00028871,30]
[426946685,1783044645000,-916.22040762,0.00028952,30]
[426946683,1783044645000,-2935.99475202,0.0002891,2]
[426946694,1783044645000,-1051.1,0.00028994,30]
[426946684,1783044645000,-150.0,0.00028914,7]
[426946676,1783044645000,-152.0,0.00028844,5]
[426946686,1783044645000,-300.0,0.00028969,10]
[426946672,1783044645000,-150.6950005,0.00028794,7]
[426946679,1783044645000,-1848.19670857,0.0002888,60]